[Event "14th Karen Asrian Memorial 2024"]
[Site "Yerevan"]
[Date "2024.05.01"]
[Round "8.7"]
[White "Nalbandyan, Vahan"]
[Black "Davtyan, Artur"]
[Result "0-1"]
[ECO "B22"]
[WhiteElo "2110"]
[BlackElo "2474"]
[Annotator "RC"]
[PlyCount "108"]
[EventDate "2024.04.24"]
[EventType "swiss"]
[EventCountry "ARM"]
[SourceTitle "playchess.com"]
[Source "ChessBase"]
[SourceQuality "1"]
[TimeControl "40/5400+30:1800+30"]

1. e4 {[%emt 1:31:00]} c5 {[%emt 0:04:03]} 2. c3 {[%emt 0:00:00]} Nf6 {[%emt 0:01:22]} 3. e5 {[%emt 0:00:00]} Nd5 {[%emt 0:00:05]} 4. Nf3 {[%emt 0:00:00]} d6 {[%emt 0:00:14]} 5. d4 {[%emt 0:00:00]} cxd4 {[%emt 0:00:11]} 6. cxd4 {[%emt 0:00:00]} Nc6 {[%emt 0:00:06]} 7. Bc4 {[%emt 0:00:00]} Nb6 {[%emt 0:00:34]} 8. Bb3 {[%emt 0:00:00]} d5 {[%emt 0:12:33]} 9. h3 {[%emt 0:00:00]} Bf5 {[%emt 0:04:47]} 10. Nc3 {[%emt 0:00:00]} e6 {[%emt 0:00:06]} 11. Bg5 {[%emt 0:00:00]} Be7 {[%emt 0:25:58]} 12. Bxe7 {[%emt 0:00:00]} Qxe7 {[%emt 0:00:08]} 13. O-O {[%emt 0:00:00]} O-O {[%emt 0:00:16]} 14. Bc2 {[%emt 0:00:00]} Bg6 {[%emt 0:00:02]} 15. Bxg6 {[%emt 0:00:00]} fxg6 {[%emt 0:00:14]} 16. Rc1 {[%emt 0:00:00]} Rf5 {[%emt 0:04:10]} 17. Ne2 {[%emt 0:00:00]} Raf8 {[%emt 0:03:42]} 18. Rc3 {[%emt 0:00:00]} Nc4 {[%emt 0:01:48]} 19. b3 {[%emt 0:00:00]} Na3 {[%emt 0:00:06]} 20. Ne1 {[%emt 0:00:00]} Nb4 {[%emt 0:12:46]} 21. Nd3 {[%emt 0:00:00]} a5 {[%emt 0:17:32]} 22. Nxb4 {[%emt 0:00:00]} axb4 {[%emt 0:00:55]} 23. Rc5 {[%emt 0:00:00]} Rxe5 {[%emt 0:06:41]} 24. Ng3 {[%emt 0:00:00]} h5 {[%emt 0:00:04]} 25. h4 {[%emt 0:00:00]} Ref5 {[%emt 0:02:00]} 26. Nxf5 {[%emt 0:00:00]} Rxf5 {[%emt 0:00:02]} 27. g3 {[%emt 0:01:42]} b6 {[%emt 0:02:23]} 28. Rc8+ {[%emt 0:00:17]} Kh7 {[%emt 0:00:01]} 29. Qe2 {[%emt 0:00:13]} Qd7 {[%emt 0:00:19]} 30. Qa6 {[%emt 0:00:06]} Nb5 {[%emt 0:00:21]} 31. Qa8 {[%emt 0:00:27]} g5 {[%emt 0:00:01]} 32. Rh8+ {[%emt 0:01:26]} Kg6 {[%emt 0:00:00]} 33. hxg5 {[%emt 0:01:44]} Rxg5 {[%emt 0:01:12]} 34. Qb8 {[%emt 0:07:36]} Nxd4 {[%emt 0:00:59]} 35. Kg2 {[%emt 0:00:31]} Nf5 {[%emt 0:01:04]} 36. Qxb6 {[%emt 0:00:07]} h4 {[%emt 0:00:30]} 37. Re1 {[%emt 0:00:16]} hxg3 {[%emt 0:00:44]} 38. f4 {[%emt 0:00:38]} Rh5 {[%emt 0:00:59]} 39. Rxe6+ {[%emt 0:02:48]} Kf7 {[%emt 0:00:01]} 40. Rhe8 {[%emt 0:00:00]} d4 {[%emt 0:00:00]} 41. Rd8 {[%emt 0:18:58]} Qxe6 {[%emt 0:23:55]} 42. Rf8+ {[%emt 0:00:20]} Kxf8 {[%emt 0:00:03]} 43. Qxe6 {[%emt 0:00:05]} Ne7 {[%emt 0:00:10]} 44. Kxg3 {[%emt 0:10:04]} d3 {[%emt 0:00:07]} 45. Qe1 {[%emt 0:00:47]} Rd5 {[%emt 0:00:04]} 46. Qd2 {[%emt 0:00:12]} Nf5+ {[%emt 0:00:38]} 47. Kf2 {[%emt 0:00:42]} Kf7 {[%emt 0:00:16]} 48. Ke1 {[%emt 0:00:39]} Rd4 {[%emt 0:00:38]} 49. Kd1 {[%emt 0:00:39]} g6 {[%emt 0:03:27]} 50. Kc1 {[%emt 0:00:44]} Nd6 {[%emt 0:00:01]} 51. Qe3 {[%emt 0:02:46]} d2+ {[%emt 0:00:20]} 52. Kd1 {[%emt 0:00:01]} Nb5 {[%emt 0:00:21]} 53. Qxd4 {[%emt 0:01:24]} Nxd4 {[%emt 0:00:01]} 54. Kxd2 {[%emt 0:00:06]} Ke6 {[%emt 0:00:11]} 0-1

[Event "14th Karen Asrian Memorial 2024"]
[Site "Yerevan"]
[Date "2024.05.01"]
[Round "8.8"]
[White "Hakobyan, Erik"]
[Black "Hakobyan, Menua"]
[Result "1-0"]
[ECO "D37"]
[WhiteElo "2383"]
[BlackElo "2107"]
[Annotator "TA"]
[PlyCount "87"]
[EventDate "2024.04.24"]
[EventType "swiss"]
[EventCountry "ARM"]
[SourceTitle "playchess.com"]
[Source "ChessBase"]
[SourceQuality "1"]
[TimeControl "40/5400+30:1800+30"]

{[%evp 19,87,-28,-17,-25,-16,0,0,-8,-8,-5,-6,-30,-14,-24,0,0,0,0,0,0,0,0,0,0,0,0,0,0,0,0,16,20,40,0,7,10,31,25,20,19,309,127,120,124,109,0,85,20,109,98,219,208,225,189,537,549,544,542,521,320,469,445,409,244,2100,2056,1495,1485,1429,1341]} 1. c4 {[%emt 0:00:08]} e6 {[%emt 0:00:53]} 2. Nf3 {[%emt 0:00:17]} d5 {[%emt 0:01:03]} 3. e3 {[%emt 0:00:59]} Nf6 {[%emt 0:00:32]} 4. Nc3 {[%emt 0:00:10]} c5 {[%emt 0:00:18]} 5. d4 {[%emt 0:00:18]} a6 {[%emt 0:01:32]} 6. a3 {[%emt 0:00:23]} dxc4 {[%emt 0:00:18]} 7. Bxc4 {[%emt 0:00:10]} b5 {[%emt 0:00:06]} 8. Bd3 {[%emt 0:00:42]} Bb7 {[%emt 0:05:51]} 9. dxc5 {[%emt 0:04:05]} Bxc5 {[%emt 0:01:41]} 10. O-O {[%emt 0:05:33]} O-O {[%emt 0:03:45]} 11. b4 {[%emt 0:01:43]} Bd6 {[%emt 0:08:48]} 12. Bb2 {[%emt 0:00:38]} h6 {[%emt 0:10:31]} 13. Rc1 {[%emt 0:06:13] The position is equal.} Qe7 {[%emt 0:03:19]} 14. Qe2 {[%emt 0:18:02]} Nbd7 {[%emt 0:02:51]} 15. Rfd1 {[%emt 0:03:03]} Rfd8 {[%emt 0:02:24]} 16. Nd2 {[%emt 0:10:39]} Ne5 {[%emt 0:08:21]} 17. Bb1 {[%emt 0:03:40]} Rac8 {[%emt 0:02:13]} 18. Nce4 {[%emt 0:02:59]} Nxe4 {[%emt 0:13:22]} 19. Rxc8 {[%emt 0:00:45]} Rxc8 {[%emt 0:03:20]} 20. Bxe4 {[%emt 0:00:19]} Bxe4 {[%emt 0:09:05]} 21. Nxe4 {[%emt 0:00:06]} Nc4 {[%emt 0:00:06]} 22. Nxd6 {[%emt 0:04:03]} Nxd6 {[%emt 0:00:39]} 23. Qg4 {[%emt 0:01:05][%csl Gb2][%cal Rg4g7] [#]} f6 {[%emt 0:02:05]} 24. Bd4 {[%emt 0:01:58]} Nb7 {[%emt 0:03:09] Dodges Bc5} 25. h3 {[%emt 0:03:05]} Rc4 {[%emt 0:02:50]} 26. Qg6 {[%emt 0:07:18]} e5 {[%emt 0:02:03]} 27. Ba7 {[%emt 0:00:10]} Rc8 {[%emt 0:04:36]} 28. Qg4 {[%emt 0:02:21]} Rd8 {[%emt 0:04:00]} 29. Rc1 {[%emt 0:00:07][%cal Bd1c1,Bc1c8,Bc8c6,Bc6d6][%mdl 32]} Rd6 $2 {[%emt 0:04:46][%mdl 8192] Dodges Bb6} (29... Qd7 $11 {and Black stays safe.}) 30. Bb8 {[%emt 0:05:45]} (30. Rc8+ $18 {and the rest is easy.} Rd8 31. Bc5) 30... Rd7 $16 {[%emt 0:00:13]} 31. Rc8+ {[%emt 0:02:03]} Nd8 {[%emt 0:00:06]} 32. Qe4 {[%emt 0:00:42] White has more active pieces.} ({White should try} 32. Qf5 $16) 32... Rd1+ {[%emt 0:01:10]} 33. Kh2 {[%emt 0:00:06] [#] Qc6 would now be deadly.} Kf7 {[%emt 0:00:20]} (33... Qe6 $1 $11 {remains equal.} 34. Rc7 Rd7) 34. Qa8 $36 {[%emt 0:01:23][%mdl 2048] Keeping Black busy.} Ne6 {[%emt 0:00:20]} (34... Kg6 $16) 35. Qxa6 {[%emt 0:01:15]} Qd7 {[%emt 0:00:07]} 36. Rc6 {[%emt 0:02:32]} Rf1 $2 {[%emt 0:00:40]} (36... Rd5 37. Rb6 Nd8) 37. Rd6 $18 {[%emt 0:00:30]} ({Less strong is} 37. Qxb5 Rc1 38. Rb6 Qd2 $16) 37... Qe8 {[%emt 0:00:15]} 38. Qb7+ {[%emt 0:01:02]} Kg6 {[%emt 0:00:49]} 39. f3 {[%emt 0:04:42]} Kh7 {[%emt 0:00:49]} (39... Ng5 $142 40. Rd7 Qg8) 40. Qe4+ {[%emt 0:00:00]} Kh8 {[%emt 0:00:00]} 41. Qc6 {[%emt 0:06:49]} (41. Ba7 $142) 41... Qxb8 $2 {[%emt 0:10:10]} (41... Qxc6 42. Rxc6 Ng5) 42. Rxe6 {[%emt 0:00:11] White is clearly winning.} Kh7 {[%emt 0:00:04]} 43. Re8 {[%emt 0:00:43]} Qa7 {[%emt 0:00:04]} 44. Qc2+ {[%emt 0:01:07] Weighted Error Value: White=0.27 (precise) /Black=0.50.  Loses game:     	---       	Black=1      Missed win:     	White=1     	---        Mistake:       	White=2     	Black=5      Inaccurate:     	White=3     	---        OK:         	White=13    	Black=10     Best:        	White=4     	Black=2} 1-0

[Event "14th Karen Asrian Memorial 2024"]
[Site "Yerevan"]
[Date "2024.05.02"]
[Round "9.1"]
[White "Petrosyan, Manuel"]
[Black "Andriasian, Zaven"]
[Result "1-0"]
[ECO "B51"]
[WhiteElo "2616"]
[BlackElo "2570"]
[Annotator "TA"]
[PlyCount "103"]
[EventDate "2024.04.24"]
[EventType "swiss"]
[EventCountry "ARM"]
[SourceTitle "playchess.com"]
[Source "ChessBase"]
[SourceQuality "1"]
[TimeControl "40/5400+30:1800+30"]

{[%evp 14,103,27,25,92,47,35,39,57,36,40,50,56,55,58,31,56,46,71,45,111,101,116,111,106,133,124,130,119,129,127,124,123,120,107,113,117,120,100,89,110,113,131,131,135,134,136,142,141,137,129,142,157,157,143,138,220,216,286,283,357,313,366,290,339,323,369,373,361,322,297,253,272,284,277,277,268,259,900,887,803,641,774,832,789,776,834,808,834,821,1041,1010]} 1. e4 {[%emt 0:06:38]} c5 {[%emt 0:00:43]} 2. Nf3 {[%emt 0:00:27]} d6 {[%emt 0:00:22]} 3. Bb5+ {[%emt 0:00:14]} Nc6 {[%emt 0:01:51]} 4. O-O {[%emt 0:00:20]} Bd7 {[%emt 0:00:08]} 5. Re1 {[%emt 0:00:26]} Nf6 {[%emt 0:00:48]} 6. c3 {[%emt 0:00:28]} a6 {[%emt 0:00:06]} 7. Bf1 {[%emt 0:00:14]} Bg4 {[%emt 0:00:34]} 8. d4 {[%emt 0:00:22]} e5 {[%emt 0:05:17]} (8... cxd4 $11 {remains equal.} 9. cxd4 e5) 9. dxc5 {[%emt 0:05:18]} dxc5 {[%emt 0:02:57]} 10. Qxd8+ {[%emt 0:04:36]} Rxd8 {[%emt 0:00:08] White is slightly better.} 11. Nfd2 {[%emt 0:03:15]} Be7 {[%emt 0:07:38]} 12. a4 {[%emt 0:00:48][%cal Ba2a4,Ba4a5][%mdl 32]} Nd7 {[%emt 0:05:27]} 13. Nc4 {[%emt 0:10:14]} Be6 {[%emt 0:04:23]} 14. a5 {[%emt 0:03:39]} O-O {[%emt 0:02:49]} 15. Be3 {[%emt 0:08:48]} g6 {[%emt 0:02:18][%cal Bg7g6,Bg6f5][%mdl 32]} 16. Nbd2 {[%emt 0:03:45][%cal Bb1d2,Bd2f3,Bf3g5][%mdl 32]} f5 {[%emt 0:05:16]} ({Black should try} 16... Kg7 $14) 17. Bh6 $1 $16 {[%emt 0:03:55]} Rfe8 {[%emt 0:04:16]} 18. exf5 {[%emt 0:00:07]} gxf5 {[%emt 0:01:44] [#]} 19. Nf3 $1 {[%emt 0:00:10]} e4 {[%emt 0:09:23]} 20. Ng5 {[%emt 0:00:11]} Bf8 {[%emt 0:09:41]} 21. Nxe6 {[%emt 0:01:55]} Rxe6 {[%emt 0:00:25]} 22. Bf4 {[%emt 0:11:47]} Nde5 {[%emt 0:00:51]} 23. Bxe5 {[%emt 0:02:16]} Nxe5 {[%emt 0:00:18]} 24. f4 {[%emt 0:00:13]} Nc6 {[%emt 0:02:00]} 25. Red1 {[%emt 0:02:40]} Ree8 {[%emt 0:03:11]} 26. Be2 {[%emt 0:01:29][%cal Bf1e2,Be2c4,Bc4d5][%mdl 32]} Be7 {[%emt 0:03:42]} 27. Ne3 {[%emt 0:01:38]} Bd6 {[%emt 0:03:05]} 28. g3 {[%emt 0:04:51]} (28. Nxf5 Bxf4 29. Rf1 Bc7 $11) 28... Ne7 {[%emt 0:01:39]} 29. Bc4+ {[%emt 0:03:39]} Kg7 {[%emt 0:02:38]} 30. Bd5 {[%emt 0:00:54] White has more active pieces.} c4 {[%emt 0:06:52]} 31. Bxc4 {[%emt 0:00:49]} (31. Bxb7 $2 Bc5 32. Kf1 (32. Kf2 $2 Rd3 $19) 32... Bxe3 $19) 31... Bc5 {[%emt 0:00:19]} 32. Kf2 {[%emt 0:00:04][%cal Bg1f2,Bf2e2,Be2e3][%mdl 32]} h5 {[%emt 0:01:23] [#]} 33. h4 $1 {[%emt 0:03:22]} Kf6 {[%emt 0:01:03]} 34. Ke2 {[%emt 0:02:51]} Bxe3 {[%emt 0:06:10]} (34... Rf8 $16 35. Rxd8 Rxd8) 35. Kxe3 $18 {[%emt 0:00:08]} Nc8 {[%emt 0:00:06]} 36. Be2 {[%emt 0:04:47]} Nd6 {[%emt 0:00:28]} 37. Rd4 {[%emt 0:00:26]} (37. Bxh5 Nc4+ 38. Kf2 Nxb2 $18) 37... Rg8 {[%emt 0:00:28]} 38. Rg1 {[%emt 0:02:00]} (38. Bxh5 Rxg3+ 39. Kf2 Rh3 $11) 38... Nf7 {[%emt 0:01:32]} 39. Rxd8 {[%emt 0:01:14]} Nxd8 {[%emt 0:00:45]} 40. Bxh5 {[%emt 0:00:00][%mdl 4096] Endgame. KRB-KRN} Nc6 {[%emt 0:00:00]} 41. b4 {[%emt 0:17:51]} Ne7 {[%emt 0:00:14]} 42. Kd4 {[%emt 0:02:04] Dodges Nd5} Rh8 {[%emt 0:05:12]} 43. Be2 {[%emt 0:03:09]} Rd8+ {[%emt 0:00:10]} 44. Kc5 {[%emt 0:00:53] aiming for Rd1.} Rd2 {[%emt 0:18:54]} 45. Bc4 {[%emt 0:00:05]} Rc2 $2 {[%emt 0:02:42]} (45... Rd7 46. b5 Rc7+ 47. Kb4 axb5 48. Kxb5 Nc8) 46. Rd1 {[%emt 0:00:08] White is clearly winning.} Rxc3 {[%emt 0:00:26]} 47. Rd6+ {[%emt 0:00:37]} Kg7 {[%emt 0:00:01][%cal Oe7c6]} 48. Rd7 {[%emt 0:00:32][%csl LRb7,LRe7]} Kf8 {[%emt 0:00:08]} 49. Rxb7 {[%emt 0:00:44]} e3 {[%emt 0:00:08][%cal Be4e3,Be3e2][%mdl 32]} 50. Rb8+ {[%emt 0:04:06]} (50. Kd4 Rxc4+ 51. Kxe3 (51. Kxc4 $2 e2 $19) 51... Nd5+ 52. Kd3 Rxb4 $17 (52... Nxb4+ $2 53. Kxc4 Nc2 54. Kd3 $18)) 50... Kg7 {[%emt 0:00:02]} 51. Rb6 {[%emt 0:00:31]} e2 {[%emt 0:03:33]} 52. Re6 {[%emt 0:00:33] Weighted Error Value: White=0.15 (very precise) /Black=0.24 (precise) .  Mistake:       	---       	Black=3      Inaccurate:     	White=3     	Black=1      OK:         	White=17    	Black=11     Best:        	White=2     	Black=1      Strong:       	White=2     	---} (52. Rxa6 {leads to mate.} e1=Q (52... e1=R 53. Ra7 $17) 53. h5 Qe4 (53... Rxg3 $2 54. Re6 $19) (53... Rxc4+ $2 54. Kxc4 Qf1+ 55. Kc5 $19) 54. h6+ Kh7 55. Rf6 Qxc4+ 56. Kb6 Nd5+ (56... Qxb4+ {is a self mate.} 57. Ka6 Rc6+ 58. Rxc6 Nxc6 59. g4 Qb8 60. gxf5 Nb4#) 57. Ka7 Qc7+ (57... Nxf6 58. Kb6 Qxb4+ 59. Ka6 Rc5 60. Ka7 Rxa5#) 58. Ka6 Qc8+ (58... Nxf6 59. b5 Qc8+ 60. Kb6 Nd7+ 61. Ka7 Rc7#) 59. Kb5 Qc4+ 60. Ka4 Qxb4#) 1-0

[Event "14th Karen Asrian Memorial 2024"]
[Site "Yerevan"]
[Date "2024.05.02"]
[Round "9.2"]
[White "Sukiasyan, Vahe A."]
[Black "Pranesh M"]
[Result "1-0"]
[ECO "D46"]
[WhiteElo "2258"]
[BlackElo "2538"]
[Annotator "TA"]
[PlyCount "91"]
[EventDate "2024.04.24"]
[EventType "swiss"]
[EventCountry "ARM"]
[SourceTitle "playchess.com"]
[Source "ChessBase"]
[SourceQuality "1"]
[TimeControl "40/5400+30:1800+30"]

{[%evp 19,91,30,35,-12,-21,-17,-23,-40,-16,-18,3,0,47,46,68,39,36,0,251,256,381,365,424,425,406,378,376,387,356,370,414,408,407,411,406,360,348,339,340,296,368,350,462,388,406,392,359,417,413,400,420,370,407,425,437,398,429,431,676,681,679,677,858,850,29983,29984,29984,29985,29990,29991,29997,29998,29998,29999]} 1. d4 {[%emt 0:00:05]} d5 {[%emt 0:00:08]} 2. c4 {[%emt 0:00:17]} e6 {[%emt 0:00:08]} 3. Nf3 {[%emt 0:00:08]} c6 {[%emt 0:00:25]} 4. e3 {[%emt 0:00:16]} Nf6 {[%emt 0:00:08]} 5. Nc3 {[%emt 0:00:47]} Nbd7 {[%emt 0:00:14]} 6. Qc2 {[%emt 0:00:20]} Bd6 {[%emt 0:00:09]} 7. Bd3 {[%emt 0:00:05]} O-O {[%emt 0:00:33]} 8. O-O {[%emt 0:00:05]} dxc4 {[%emt 0:00:10]} 9. Bxc4 {[%emt 0:00:06]} e5 {[%emt 0:00:06]} 10. h3 {[%emt 0:12:40]} Qe7 {[%emt 0:00:09]} 11. Re1 {[%emt 0:09:35]} (11. Bb3 $14) 11... e4 $11 {[%emt 0:02:55]} 12. Ng5 {[%emt 0:05:10][%cal Rg5e4]} Nb6 {[%emt 0:01:01]} 13. Bb3 {[%emt 0:00:04][%cal Rg5e4] Black has an edge.} Bb4 {[%emt 0:01:25]} 14. f3 $1 {[%emt 0:01:11]} exf3 {[%emt 0:11:40]} 15. Nxf3 {[%emt 0:00:06]} c5 {[%emt 0:07:36]} (15... a5 $11 16. Qd3 Be6) 16. a3 $14 {[%emt 0:16:52]} Ba5 {[%emt 0:01:37]} 17. Ba2 {[%emt 0:04:41] White is more active.} Be6 {[%emt 0:02:26]} 18. Bb1 {[%emt 0:11:02]} h6 $2 {[%emt 0:04:09][%mdl 8192] Black is now going downhill.} (18... Nbd7 $11) 19. e4 $18 {[%emt 0:02:40]} Nh7 {[%emt 0:25:59]} (19... cxd4 {was necessary.} 20. e5 (20. Nxd4 Qc5 $16) 20... Qc5 (20... dxc3 $2 21. exf6 Qc5+ 22. Be3 $18)) 20. d5 {[%emt 0:02:09]} Bd7 {[%emt 0:02:58]} 21. e5 {[%emt 0:01:13][%csl Gb1][%cal Rc2h7] [#]} g6 {[%emt 0:00:12]} 22. e6 {[%emt 0:05:03]} fxe6 {[%emt 0:02:51]} 23. Qxg6+ {[%emt 0:01:53]} (23. Bxh6 Rf5 24. Qf2 Bxc3 $18) 23... Qg7 {[%emt 0:00:38]} 24. dxe6 {[%emt 0:01:44]} ({Don't do} 24. Bxh6 Qxg6 25. Bxg6 Bxc3 $18) 24... Be8 {[%emt 0:02:24]} 25. Qxh6 {[%emt 0:00:20]} Qxh6 {[%emt 0:00:39]} 26. Bxh6 {[%emt 0:00:12]} Rf6 {[%emt 0:00:01]} 27. Bxh7+ {[%emt 0:01:53]} Kxh7 {[%emt 0:00:08]} 28. Bg5 {[%emt 0:00:05]} Rg6 {[%emt 0:00:24]} 29. h4 {[%emt 0:02:25]} Nc4 {[%emt 0:02:07][%cal Bb6c4,Bc4a3,Ba3b5][%mdl 32]} 30. Re2 {[%emt 0:02:17]} Bc6 {[%emt 0:00:30]} 31. Ne4 {[%emt 0:01:28]} Kg7 {[%emt 0:00:57]} 32. Nxc5 {[%emt 0:00:41]} Bb6 {[%emt 0:02:09]} 33. b4 {[%emt 0:00:04]} a5 {[%emt 0:00:28] ...axb4 would now be deadly.} 34. Rc1 {[%emt 0:02:26]} Nxa3 {[%emt 0:00:40]} 35. Nd4 {[%emt 0:01:00]} axb4 {[%emt 0:01:15]} 36. Nxc6 {[%emt 0:01:56]} bxc6 {[%emt 0:00:06]} 37. Kh2 {[%emt 0:01:57] e7 is the strong threat.} Re8 {[%emt 0:02:07]} 38. e7 {[%emt 0:00:38]} Bxc5 {[%emt 0:01:40]} (38... b3 $142 39. Nxb3 (39. Ne6+ Rxe6 40. Rxe6 b2 $18) 39... Nb5) 39. Rxc5 {[%emt 0:00:04] Hoping for h5.} Nb5 {[%emt 0:00:15]} 40. h5 {[%emt 0:00:00][%cal Bh4h5,Bh5h6][%mdl 32]} Rd6 {[%emt 0:00:00]} 41. Rf5 {[%emt 0:05:02] Black must now prevent Ref2.} Nc7 {[%emt 0:07:33]} 42. Ref2 {[%emt 0:02:18] White mates.} Ne6 {[%emt 0:01:17]} 43. Rf7+ {[%emt 0:00:06]} Kg8 {[%emt 0:00:15] [#]} 44. h6 $1 {[%emt 0:00:06]} Nxg5 {[%emt 0:00:43]} (44... c5 45. R2f3) 45. Rg7+ {[%emt 0:00:06]} Kh8 {[%emt 0:00:05]} 46. Rf8+ {[%emt 0:00:03] Weighted Error Value: White=0.11 (very precise) /Black=0.48.  Loses game:     	---       	Black=1      Mistake:       	---       	Black=3      Inaccurate:     	White=2     	Black=1      OK:         	White=10    	Black=11     Best:        	White=4     	Black=1      Strong:       	White=1     	---} 1-0

[Event "14th Karen Asrian Memorial 2024"]
[Site "Yerevan"]
[Date "2024.05.02"]
[Round "9.3"]
[White "Pogosyan, Stefan"]
[Black "Hayrapetyan, Hovik"]
[Result "1-0"]
[ECO "D27"]
[WhiteElo "2387"]
[BlackElo "2432"]
[Annotator "TA"]
[PlyCount "99"]
[EventDate "2024.04.24"]
[EventType "swiss"]
[EventCountry "ARM"]
[SourceTitle "playchess.com"]
[Source "ChessBase"]
[SourceQuality "1"]
[TimeControl "40/5400+30:1800+30"]

{[%evp 16,99,7,10,8,3,8,0,7,10,17,0,25,33,98,9,10,8,6,-8,0,0,0,0,0,0,0,-12,87,0,0,0,0,0,0,0,0,0,33,33,101,70,78,68,77,82,93,83,114,118,129,116,106,93,92,15,244,255,286,284,371,258,258,255,385,360,589,573,706,689,821,743,1189,1182,1326,1840,1597,1949,29966,29966,29977,29978,29987,29988,29989,29990]} 1. c4 {[%emt 0:00:14]} Nf6 {[%emt 0:04:05]} 2. Nc3 {[%emt 0:00:08]} e6 {[%emt 0:09:12]} 3. Nf3 {[%emt 0:00:48]} d5 {[%emt 0:00:31]} 4. e3 {[%emt 0:00:04]} dxc4 {[%emt 0:07:07]} 5. Bxc4 {[%emt 0:00:13]} a6 {[%emt 0:00:01]} 6. a4 {[%emt 0:04:02]} c5 {[%emt 0:00:27]} 7. d4 {[%emt 0:00:20]} cxd4 {[%emt 0:00:55]} 8. exd4 {[%emt 0:00:05]} Be7 {[%emt 0:01:01]} 9. O-O {[%emt 0:00:09]} O-O {[%emt 0:00:03] D27: Queen's Gambit Accepted: Classical main line: 7 e4!? and 7 a4.} 10. d5 {[%emt 0:09:37]} exd5 {[%emt 0:00:56]} 11. Nxd5 {[%emt 0:00:04]} Nxd5 {[%emt 0:00:27]} 12. Bxd5 {[%emt 0:00:20]} Nd7 {[%emt 0:13:32]} 13. Nd4 $146 {[%emt 0:17:46]} ({Predecessor:} 13. Be3 Nf6 14. Bc4 Qxd1 15. Rfxd1 Bd7 16. Ne5 Be6 17. Bxe6 fxe6 18. Nd7 Rfd8 19. Nb6 Rxd1+ 20. Rxd1 Rd8 21. Rxd8+ {½-½ Zhuravlev,K (2189)-Gudkov,A (2316) RUS RCCA25/B email 2017}) 13... Nc5 {[%emt 0:14:55]} 14. Qf3 {[%emt 0:02:40]} Be6 {[%emt 0:02:19]} (14... Qb6 $14) 15. Nf5 {[%emt 0:04:33]} (15. Bxb7 $16 {And now Nc6 would win.} Nxb7 16. Nxe6 (16. Qxb7 Qxd4 17. Qxe7 Rfc8 $11) 16... fxe6 17. Qxb7) 15... Bxd5 $11 {[%emt 0:04:21] [#]} 16. Qxd5 $1 {[%emt 0:00:00]} Re8 {[%emt 0:02:25]} 17. Qf3 {[%emt 0:14:47]} Bf8 {[%emt 0:12:38]} 18. Be3 {[%emt 0:10:12]} Qb6 {[%emt 0:07:18]} 19. Rac1 {[%emt 0:06:23]} Rac8 {[%emt 0:01:05]} 20. Rc4 {[%emt 0:03:48] b4 is the strong threat.} Qe6 {[%emt 0:04:46]} 21. Rfc1 {[%emt 0:10:15]} Nd3 {[%emt 0:02:45]} (21... Nxa4 $11 {keeps the balance.} 22. Nh6+ (22. Rxa4 $2 {is a self mate.} Rxc1+ 23. Bxc1 Qe1#) 22... gxh6 23. Qg4+ Qxg4 24. Rxg4+ Bg7 25. Rxc8 Rxc8 26. Bxh6 Rc6 27. Rxg7+ Kh8) 22. Rxc8 {[%emt 0:02:41]} ({Not} 22. Nxg7 $2 Bxg7 23. Rxc8 Rxc8 $19) (22. Nh6+ $1 $16 gxh6 23. Qg4+ Qxg4 24. Rxg4+ Bg7 25. Rxc8 Rxc8 26. Bxh6) 22... Rxc8 {[%emt 0:00:03]} 23. Rxc8 {[%emt 0:02:18]} Qxc8 {[%emt 0:00:02]} 24. h4 {[%emt 0:05:31]} Qc6 {[%emt 0:03:56]} 25. Qxc6 {[%emt 0:00:33]} bxc6 {[%emt 0:00:04][%mdl 4096] Endgame. KBN-KBN} 26. b3 {[%emt 0:00:38]} c5 {[%emt 0:01:38]} 27. Kf1 {[%emt 0:00:31]} g6 {[%emt 0:00:01]} ({Black should play} 27... f6 $14) 28. Ke2 {[%emt 0:01:26]} Ne5 {[%emt 0:00:06] [#]} 29. Bf4 $1 {[%emt 0:02:02]} Nc6 {[%emt 0:01:39] [#]} 30. Nd6 $1 {[%emt 0:00:04]} Be7 {[%emt 0:01:33]} 31. g3 {[%emt 0:00:41]} Nd4+ {[%emt 0:04:00]} 32. Kd3 {[%emt 0:00:06]} Ne6 {[%emt 0:01:39]} 33. Be5 {[%emt 0:01:15] Prevents Nxf4+.} f6 {[%emt 0:00:01]} 34. Nc8 $1 {[%emt 0:00:06]} Kf7 {[%emt 0:00:02]} 35. Bb8 {[%emt 0:01:23]} (35. Bc3 $16) 35... Nd4 $2 {[%emt 0:01:53]} (35... Bd8 $1 $11 {and Black has nothing to worry.}) 36. Kc4 $18 {[%emt 0:00:08]} Nc6 {[%emt 0:00:13]} 37. Nxe7 {[%emt 0:02:01]} Kxe7 {[%emt 0:00:48] KB-KN} 38. Bc7 {[%emt 0:00:05]} Kd7 {[%emt 0:00:29]} 39. Bb6 {[%emt 0:00:04]} Ne5+ {[%emt 0:00:32]} (39... f5 $142 40. Bxc5 (40. Kxc5 f4 $18) 40... Na5+ 41. Kc3 Kc7) 40. Kxc5 {[%emt 0:00:00]} h5 $2 {[%emt 0:00:00]} (40... Nc6 {is a better defense.} 41. b4 g5) 41. Kd5 {[%emt 0:04:52]} Nc6 {[%emt 0:04:47]} 42. Bd4 {[%emt 0:01:01]} Ne7+ {[%emt 0:01:26]} 43. Kc5 {[%emt 0:00:41]} Ke6 {[%emt 0:00:40]} 44. b4 {[%emt 0:04:43]} g5 {[%emt 0:01:33]} 45. b5 {[%emt 0:00:04]} axb5 {[%emt 0:00:03]} 46. axb5 {[%emt 0:00:03][%cal Ba4b5,Bb5b6][%mdl 32] Strongly threatening b6.} gxh4 {[%emt 0:00:11]} 47. gxh4 {[%emt 0:00:04]} f5 {[%emt 0:01:40]} 48. b6 {[%emt 0:00:12]} Kd7 {[%emt 0:00:01]} 49. Be5 {[%emt 0:00:06]} Kc8 {[%emt 0:00:05]} 50. Bd6 {[%emt 0:00:03]} 1-0